fUSD/lending_fUSD_20260625
["ID","MTS","AMOUNT","RATE_DAILY","PERIOD"]
[426432987,1782383672000,-401.05220119,0.00032,2]
[426432988,1782383672000,-1000.0,0.00032,2]
[426432999,1782383672000,-1092.0,0.00032081,7]
[426432994,1782383672000,-350.0,0.00032001,3]
[426432993,1782383672000,-172.05,0.00032,18]
[426432990,1782383672000,-1000.0,0.00032,2]
[426432989,1782383672000,-1000.0,0.00032,2]
[426432991,1782383672000,-1000.0,0.00032,2]
[426432995,1782383672000,-251.0,0.0003201,2]
[426432997,1782383672000,-251.0,0.0003201,2]
[426432983,1782383672000,-25335.39186752,0.00032,2]
[426433007,1782383672000,-11227.7907021,0.000323,120]
[426433012,1782383672000,-200.0,0.00032461,2]
[426433009,1782383672000,-150.0,0.00032421,2]
[426433008,1782383672000,-251.0,0.0003234,2]
[426432992,1782383672000,-700.0,0.00032,2]
[426433005,1782383672000,-243.26,0.00032268,30]
[426433002,1782383672000,-200.0,0.00032139,2]
[426433006,1782383672000,-913.90440076,0.000323,2]
[426433003,1782383672000,-675.0,0.00032148,6]
[426433000,1782383672000,-8895.58,0.000321,30]
[426433001,1782383672000,-200.0,0.00032139,2]
[426432998,1782383672000,-251.0,0.0003201,2]
[426432996,1782383672000,-251.0,0.0003201,2]
[426433004,1782383672000,-350.0,0.0003215,4]
[426433087,1782383673000,-5922.5732364,0.00033087,2]
[426433085,1782383673000,-1320.0,0.00033007,7]
[426433083,1782383673000,-1000.0,0.00033,2]
[426433084,1782383673000,-609.25130087,0.00033,2]
[426433080,1782383673000,-40714.09088471,0.00033,6]
[426433069,1782383673000,-2110.0,0.0003296,2]
[426433082,1782383673000,-20000.0,0.00033,7]
[426433078,1782383673000,-25000.0,0.00033,30]
[426433079,1782383673000,-268.92,0.00033,120]
[426433076,1782383673000,-800.0,0.00033,5]
[426433077,1782383673000,-800.0,0.00033,5]
[426433088,1782383673000,-1743.845,0.000331,10]
[426433081,1782383673000,-72177.0,0.00033,120]
[426433086,1782383673000,-298.42,0.00033056,14]
[426433094,1782383673000,-159.36,0.000331,30]
[426433091,1782383673000,-1549.725,0.000331,10]
[426433095,1782383673000,-292.14553771,0.00033123,120]
[426433092,1782383673000,-1549.72,0.000331,20]
[426433093,1782383673000,-214.66949065,0.000331,30]
[426433096,1782383673000,-298.31632342,0.00033123,120]
[426433090,1782383673000,-1549.725,0.000331,30]
[426433100,1782383673000,-252.15378284,0.00033123,120]
[426433098,1782383673000,-191.60622105,0.00033123,120]
[426433097,1782383673000,-361.43035847,0.00033123,120]
[426433099,1782383673000,-360.21968977,0.00033123,120]
[426433101,1782383673000,-176.50764799,0.00033123,120]
[426433102,1782383673000,-150.331311,0.00033131,68]
[426433103,1782383673000,-266.08157,0.00033151,7]
[426433089,1782383673000,-168.42883325,0.000331,20]
[426433072,1782383673000,-50000.0,0.00033,23]
[426433109,1782383673000,-157.27721843,0.00033245,30]
[426433070,1782383673000,-412.49982659,0.0003297,2]
[426433044,1782383673000,-151.0,0.00032877,7]
[426433047,1782383673000,-151.0,0.00032877,7]
[426433048,1782383673000,-151.0,0.00032877,7]
[426433050,1782383673000,-151.0,0.00032877,7]
[426433049,1782383673000,-151.0,0.00032877,7]
[426433045,1782383673000,-151.0,0.00032877,7]
[426433046,1782383673000,-151.0,0.00032877,7]
[426433051,1782383673000,-151.0,0.00032877,7]
[426433052,1782383673000,-208.009678,0.00032877,7]
[426433053,1782383673000,-200.75468336,0.00032877,2]
[426433057,1782383673000,-500.0,0.00032877,2]
[426433060,1782383673000,-500.0,0.00032877,2]
[426433054,1782383673000,-401.50936672,0.00032877,2]
[426433073,1782383673000,-800.0,0.00033,5]
[426433056,1782383673000,-803.01873344,0.00032877,2]
[426433063,1782383673000,-436.84043882,0.00032877,2]
[426433059,1782383673000,-500.0,0.00032877,2]
[426433062,1782383673000,-500.0,0.00032877,2]
[426433055,1782383673000,-602.26405008,0.00032877,2]
[426433061,1782383673000,-500.0,0.00032877,2]
[426433064,1782383673000,-243.26,0.00032877,30]
[426433065,1782383673000,-202.587009,0.00032877,120]
[426433066,1782383673000,-327.1,0.000329,120]
[426433067,1782383673000,-150.0,0.000329,12]
[426433074,1782383673000,-800.0,0.00033,5]
[426433071,1782383673000,-700.0,0.0003297,2]
[426433068,1782383673000,-350.0,0.00032944,2]
[426433075,1782383673000,-251.0,0.00033,2]
[426433058,1782383673000,-500.0,0.00032877,2]
[426433105,1782383673000,-179.601465,0.00033151,7]
[426433133,1782383673000,-200.0,0.00033561,2]
[426433112,1782383673000,-1348.2743,0.000333,10]
[426433141,1782383673000,-536.43654797,0.00033658,2]
[426433150,1782383673000,-300.0,0.00033658,2]
[426433152,1782383673000,-529.28557893,0.00033658,2]
[426433147,1782383673000,-300.95906456,0.00033658,2]
[426433151,1782383673000,-345.51736492,0.00033658,2]
[426433142,1782383673000,-379.91856854,0.00033658,2]
[426433149,1782383673000,-300.0,0.00033658,2]
[426433143,1782383673000,-494.94388681,0.00033658,2]
[426433146,1782383673000,-303.17948037,0.00033658,2]
[426433144,1782383673000,-607.41821779,0.00033658,2]
[426433148,1782383673000,-301.95011187,0.00033658,2]
[426433145,1782383673000,-729.6261113,0.00033658,2]
[426433153,1782383673000,-953.641286,0.00033658,2]
[426433140,1782383673000,-536.43654797,0.00033658,2]
[426433154,1782383673000,-1806.0547546,0.00033658,2]
[426433160,1782383673000,-453.95122882,0.00033658,2]
[426433159,1782383673000,-584.16752905,0.00033658,2]
[426433158,1782383673000,-513.60081848,0.00033658,2]
[426433156,1782383673000,-596.87604565,0.00033658,2]
[426433157,1782383673000,-300.0,0.00033658,2]
[426433161,1782383673000,-445.78876108,0.00033658,2]
[426433163,1782383673000,-1100.3031347,0.00033658,2]
[426433162,1782383673000,-300.0,0.00033658,2]
[426433164,1782383673000,-300.0,0.00033658,2]
[426433165,1782383673000,-494.94388681,0.00033658,2]
[426433169,1782383673000,-300.95906456,0.00033658,2]
[426433166,1782383673000,-607.41821779,0.00033658,2]
[426433113,1782383673000,-1350.0743,0.000333,30]
[426433155,1782383673000,-588.06698112,0.00033658,2]
[426433137,1782383673000,-536.43654797,0.00033658,2]
[426433168,1782383673000,-303.17948037,0.00033658,2]
[426433130,1782383673000,-800.0,0.000335,5]
[426433107,1782383673000,-243.26,0.00033181,30]
[426433110,1782383673000,-158.37237088,0.00033273,7]
[426433104,1782383673000,-199.168625,0.00033151,7]
[426433106,1782383673000,-614.78,0.00033161,2]
[426433111,1782383673000,-1348.2743,0.000333,20]
[426433108,1782383673000,-675.0,0.00033188,7]
[426433114,1782383673000,-1350.0743,0.000333,20]
[426433115,1782383673000,-537.58,0.000333,30]
[426433135,1782383673000,-536.43654797,0.00033658,2]
[426433120,1782383673000,-211.66748362,0.00033412,30]
[426433119,1782383673000,-443.9,0.00033401,10]
[426433117,1782383673000,-1638.0,0.00033364,7]
[426433118,1782383673000,-172.185143,0.00033377,120]
[426433126,1782383673000,-800.0,0.000335,5]
[426433116,1782383673000,-4928.39200212,0.00033333,7]
[426433124,1782383673000,-2110.0,0.0003346,2]
[426433138,1782383673000,-536.43654797,0.00033658,2]
[426433125,1782383673000,-243.26,0.00033486,30]
[426433167,1782383673000,-729.6261113,0.00033658,2]
[426433139,1782383673000,-536.43654797,0.00033658,2]
[426433136,1782383673000,-536.43654797,0.00033658,2]
[426433134,1782383673000,-1842.39,0.00033568,14]
[426433129,1782383673000,-1238.32554586,0.000335,2]
[426433132,1782383673000,-158.37237088,0.00033547,7]
[426433128,1782383673000,-800.0,0.000335,5]
[426433127,1782383673000,-800.0,0.000335,5]
[426433121,1782383673000,-211.66748362,0.00033412,30]
[426433122,1782383673000,-211.66748362,0.00033412,30]
[426433123,1782383673000,-211.66748361,0.00033412,30]
[426433131,1782383673000,-304.19787457,0.00033506,4]
[426433214,1782383674000,-607.42547748,0.00033658,2]
[426433209,1782383674000,-300.0,0.00033658,2]
[426433208,1782383674000,-445.79408902,0.00033658,2]
[426433207,1782383674000,-453.95665431,0.00033658,2]
[426433213,1782383674000,-494.94956545,0.00033658,2]
[426433196,1782383674000,-345.52149444,0.00033658,2]
[426433210,1782383674000,-314.21803885,0.00033658,2]
[426433205,1782383674000,-513.60695689,0.00033658,2]
[426433212,1782383674000,-300.0,0.00033658,2]
[426433206,1782383674000,-584.20819687,0.00033658,2]
[426433204,1782383674000,-300.0,0.00033658,2]
[426433211,1782383674000,-1100.3031347,0.00033658,2]
[426433215,1782383674000,-729.6261113,0.00033658,2]
[426433228,1782383674000,-513.60695689,0.00033658,2]
[426433217,1782383674000,-301.95372069,0.00033658,2]
[426433219,1782383674000,-345.52149444,0.00033658,2]
[426433220,1782383674000,-529.2919048,0.00033658,2]
[426433221,1782383674000,-953.641286,0.00033658,2]
[426433222,1782383674000,-1806.0547546,0.00033658,2]
[426433218,1782383674000,-300.0,0.00033658,2]
[426433225,1782383674000,-568.6267816,0.00033658,2]
[426433223,1782383674000,-588.07351754,0.00033658,2]
[426433224,1782383674000,-311.01241424,0.00033658,2]
[426433227,1782383674000,-300.0,0.00033658,2]
[426433229,1782383674000,-584.20819687,0.00033658,2]
[426433226,1782383674000,-596.88317933,0.00033658,2]
[426433195,1782383674000,-300.0,0.00033658,2]
[426433216,1782383674000,-303.17948037,0.00033658,2]
[426433202,1782383674000,-568.6267816,0.00033658,2]
[426433185,1782383674000,-453.95665431,0.00033658,2]
[426433203,1782383674000,-596.88317933,0.00033658,2]
[426433230,1782383674000,-453.95665431,0.00033658,2]
[426433171,1782383674000,-300.0,0.00033658,2]
[426433172,1782383674000,-510.86860271,0.00033658,2]
[426433170,1782383674000,-301.95011187,0.00033658,2]
[426433177,1782383674000,-1806.0547546,0.00033658,2]
[426433173,1782383674000,-345.51736492,0.00033658,2]
[426433178,1782383674000,-588.06698112,0.00033658,2]
[426433176,1782383674000,-953.641286,0.00033658,2]
[426433175,1782383674000,-529.28557893,0.00033658,2]
[426433179,1782383674000,-311.01241424,0.00033658,2]
[426433181,1782383674000,-596.87604565,0.00033658,2]
[426433183,1782383674000,-513.60695689,0.00033658,2]
[426433180,1782383674000,-568.6267816,0.00033658,2]
[426433194,1782383674000,-301.95372069,0.00033658,2]
[426433182,1782383674000,-300.0,0.00033658,2]
[426433187,1782383674000,-300.0,0.00033658,2]
[426433186,1782383674000,-445.78876108,0.00033658,2]
[426433189,1782383674000,-300.0,0.00033658,2]
[426433188,1782383674000,-1100.3031347,0.00033658,2]
[426433191,1782383674000,-607.41821779,0.00033658,2]
[426433190,1782383674000,-494.94956545,0.00033658,2]
[426433192,1782383674000,-729.6261113,0.00033658,2]
[426433198,1782383674000,-953.641286,0.00033658,2]
[426433199,1782383674000,-1806.0547546,0.00033658,2]
[426433193,1782383674000,-303.17948037,0.00033658,2]
[426433197,1782383674000,-529.2919048,0.00033658,2]
[426433200,1782383674000,-588.07351754,0.00033658,2]
[426433201,1782383674000,-311.01241424,0.00033658,2]
[426433184,1782383674000,-584.16752905,0.00033658,2]
[426433234,1782383674000,-300.0,0.00033658,2]
[426433233,1782383674000,-1100.3031347,0.00033658,2]
[426433275,1782383674000,-300.0,0.00033658,2]
[426433268,1782383674000,-311.01241424,0.00033658,2]
[426433278,1782383674000,-607.42547748,0.00033658,2]
[426433267,1782383674000,-588.07351754,0.00033658,2]
[426433279,1782383674000,-729.63483158,0.00033658,2]
[426433274,1782383674000,-445.79408902,0.00033658,2]
[426433272,1782383674000,-513.60695689,0.00033658,2]
[426433270,1782383674000,-596.88317933,0.00033658,2]
[426433273,1782383674000,-453.95665431,0.00033658,2]
[426433271,1782383674000,-300.0,0.00033658,2]
[426433280,1782383674000,-303.18310389,0.00033658,2]
[426433276,1782383674000,-1100.3162852,0.00033658,2]
[426433277,1782383674000,-494.94956545,0.00033658,2]
[426433281,1782383674000,-301.95372069,0.00033658,2]
[426433265,1782383674000,-953.65268364,0.00033658,2]
[426433284,1782383674000,-529.2919048,0.00033658,2]
[426433285,1782383674000,-953.65268364,0.00033658,2]
[426433288,1782383674000,-311.01241424,0.00033658,2]
[426433291,1782383674000,-512.19845563,0.00033658,2]
[426433290,1782383674000,-596.88317933,0.00033658,2]
[426433293,1782383674000,-453.95665431,0.00033658,2]
[426433287,1782383674000,-588.07351754,0.00033658,2]
[426433282,1782383674000,-473.30067102,0.00033658,2]
[426433286,1782383674000,-1806.07634004,0.00033658,2]
[426433292,1782383674000,-513.60695689,0.00033658,2]
[426433289,1782383674000,-568.6267816,0.00033658,2]
[426433294,1782383674000,-445.79408902,0.00033658,2]
[426433295,1782383674000,-300.0,0.00033658,2]
[426433232,1782383674000,-300.0,0.00033658,2]
[426433283,1782383674000,-345.52149444,0.00033658,2]
[426433263,1782383674000,-345.52149444,0.00033658,2]
[426433269,1782383674000,-568.6267816,0.00033658,2]
[426433258,1782383674000,-607.42547748,0.00033658,2]
[426433236,1782383674000,-607.42547748,0.00033658,2]
[426433235,1782383674000,-494.94956545,0.00033658,2]
[426433231,1782383674000,-445.79408902,0.00033658,2]
[426433237,1782383674000,-729.63483158,0.00033658,2]
[426433238,1782383674000,-303.17948037,0.00033658,2]
[426433239,1782383674000,-301.95372069,0.00033658,2]
[426433240,1782383674000,-300.0,0.00033658,2]
[426433241,1782383674000,-345.52149444,0.00033658,2]
[426433242,1782383674000,-529.2919048,0.00033658,2]
[426433264,1782383674000,-529.2919048,0.00033658,2]
[426433243,1782383674000,-953.65268364,0.00033658,2]
[426433253,1782383674000,-445.79408902,0.00033658,2]
[426433251,1782383674000,-453.50452972,0.00033658,2]
[426433247,1782383674000,-568.6267816,0.00033658,2]
[426433252,1782383674000,-453.95665431,0.00033658,2]
[426433244,1782383674000,-1806.07634004,0.00033658,2]
[426433245,1782383674000,-588.07351754,0.00033658,2]
[426433261,1782383674000,-301.95372069,0.00033658,2]
[426433249,1782383674000,-300.0,0.00033658,2]
[426433260,1782383674000,-303.18310389,0.00033658,2]
[426433257,1782383674000,-494.94956545,0.00033658,2]
[426433262,1782383674000,-300.0,0.00033658,2]
[426433266,1782383674000,-1806.07634004,0.00033658,2]
[426433259,1782383674000,-729.63483158,0.00033658,2]
[426433255,1782383674000,-1100.3162852,0.00033658,2]
[426433254,1782383674000,-300.0,0.00033658,2]
[426433248,1782383674000,-596.88317933,0.00033658,2]
[426433246,1782383674000,-311.01241424,0.00033658,2]
[426433250,1782383674000,-513.60695689,0.00033658,2]
[426433256,1782383674000,-517.26492733,0.00033658,2]
[426433341,1782383675000,-1806.07634004,0.00033658,2]
[426433345,1782383675000,-796.02258119,0.00033658,2]
[426433346,1782383675000,-513.60695689,0.00033658,2]
[426433342,1782383675000,-588.07351754,0.00033658,2]
[426433336,1782383675000,-303.18310389,0.00033658,2]
[426433337,1782383675000,-301.95372069,0.00033658,2]
[426433329,1782383675000,-453.95665431,0.00033658,2]
[426433335,1782383675000,-729.63483158,0.00033658,2]
[426433330,1782383675000,-445.79408902,0.00033658,2]
[426433328,1782383675000,-513.60695689,0.00033658,2]
[426433331,1782383675000,-300.0,0.00033658,2]
[426433340,1782383675000,-953.65268364,0.00033658,2]
[426433338,1782383675000,-345.52149444,0.00033658,2]
[426433344,1782383675000,-568.6267816,0.00033658,2]
[426433357,1782383675000,-529.2919048,0.00033658,2]
[426433343,1782383675000,-311.01241424,0.00033658,2]
[426433347,1782383675000,-453.95665431,0.00033658,2]
[426433349,1782383675000,-300.0,0.00033658,2]
[426433351,1782383675000,-494.94956545,0.00033658,2]
[426433359,1782383675000,-1806.07634004,0.00033658,2]
[426433348,1782383675000,-445.79408902,0.00033658,2]
[426433350,1782383675000,-1100.3162852,0.00033658,2]
[426433360,1782383675000,-784.25489747,0.00033658,2]
[426433353,1782383675000,-729.63483158,0.00033658,2]
[426433352,1782383675000,-607.42547748,0.00033658,2]
[426433355,1782383675000,-301.95372069,0.00033658,2]
[426433354,1782383675000,-303.18310389,0.00033658,2]
[426433358,1782383675000,-953.65268364,0.00033658,2]
[426433325,1782383675000,-311.01241424,0.00033658,2]
[426433339,1782383675000,-529.2919048,0.00033658,2]
[426433326,1782383675000,-568.6267816,0.00033658,2]
[426433306,1782383675000,-588.07351754,0.00033658,2]
[426433323,1782383675000,-1806.07634004,0.00033658,2]
[426433298,1782383675000,-607.42547748,0.00033658,2]
[426433297,1782383675000,-494.94956545,0.00033658,2]
[426433299,1782383675000,-729.63483158,0.00033658,2]
[426433296,1782383675000,-1100.3162852,0.00033658,2]
[426433301,1782383675000,-301.95372069,0.00033658,2]
[426433302,1782383675000,-345.52149444,0.00033658,2]
[426433304,1782383675000,-953.65268364,0.00033658,2]
[426433307,1782383675000,-311.01241424,0.00033658,2]
[426433300,1782383675000,-303.18310389,0.00033658,2]
[426433303,1782383675000,-529.2919048,0.00033658,2]
[426433309,1782383675000,-596.88317933,0.00033658,2]
[426433308,1782383675000,-568.6267816,0.00033658,2]
[426433310,1782383675000,-513.60695689,0.00033658,2]
[426433317,1782383675000,-729.63483158,0.00033658,2]
[426433313,1782383675000,-300.0,0.00033658,2]
[426433315,1782383675000,-494.94956545,0.00033658,2]
[426433320,1782383675000,-345.52149444,0.00033658,2]
[426433311,1782383675000,-453.95665431,0.00033658,2]
[426433314,1782383675000,-1100.3162852,0.00033658,2]
[426433312,1782383675000,-445.79408902,0.00033658,2]
[426433316,1782383675000,-607.42547748,0.00033658,2]
[426433319,1782383675000,-301.95372069,0.00033658,2]
[426433318,1782383675000,-303.18310389,0.00033658,2]
[426433322,1782383675000,-953.65268364,0.00033658,2]
[426433334,1782383675000,-607.42547748,0.00033658,2]
[426433333,1782383675000,-494.94956545,0.00033658,2]
[426433332,1782383675000,-1100.3162852,0.00033658,2]
[426433321,1782383675000,-529.2919048,0.00033658,2]
[426433324,1782383675000,-588.07351754,0.00033658,2]
[426433327,1782383675000,-596.88317933,0.00033658,2]
[426433356,1782383675000,-345.52149444,0.00033658,2]
[426433305,1782383675000,-1806.07634004,0.00033658,2]
[426433361,1782383675000,-311.01241424,0.00033658,2]
[426433397,1782383675000,-300.03726099,0.00033658,2]
[426433398,1782383675000,-300.07850228,0.00033658,2]
[426433399,1782383675000,-300.0,0.00033658,2]
[426433400,1782383675000,-660.06336285,0.00033658,2]
[426433402,1782383675000,-324.84581375,0.00033658,2]
[426433406,1782383675000,-300.03813188,0.00033658,2]
[426433409,1782383675000,-300.0,0.00033658,2]
[426433403,1782383675000,-300.03693999,0.00033658,2]
[426433404,1782383675000,-300.00000001,0.00033658,2]
[426433401,1782383675000,-300.07571434,0.00033658,2]
[426433411,1782383675000,-300.03758487,0.00033658,2]
[426433412,1782383675000,-300.0,0.00033658,2]
[426433407,1782383675000,-300.03694365,0.00033658,2]
[426433408,1782383675000,-453.95122882,0.00033658,2]
[426433394,1782383675000,-300.0,0.00033658,2]
[426433405,1782383675000,-568.61998564,0.00033658,2]
[426433414,1782383675000,-300.06090526,0.00033658,2]
[426433422,1782383675000,-300.01500328,0.00033658,2]
[426433413,1782383675000,-300.05848638,0.00033658,2]
[426433424,1782383675000,-303.51797925,0.00033658,2]
[426433423,1782383675000,-303.17948037,0.00033658,2]
[426433419,1782383675000,-300.0364356,0.00033658,2]
[426433418,1782383675000,-300.00951162,0.00033658,2]
[426433415,1782383675000,-472.00863649,0.00033658,2]
[426433425,1782383675000,-300.024263,0.00033658,2]
[426433420,1782383675000,-300.06041095,0.00033658,2]
[426433426,1782383675000,-406.21495167,0.00033658,2]
[426433416,1782383675000,-300.07983639,0.00033658,2]
[426433421,1782383675000,-300.01076096,0.00033658,2]
[426433363,1782383675000,-684.9504595,0.00033658,2]
[426433410,1782383675000,-300.07820625,0.00033658,2]
[426433392,1782383675000,-953.65268364,0.00033658,2]
[426433417,1782383675000,-494.94388681,0.00033658,2]
[426433396,1782383675000,-300.0,0.00033658,2]
[426433362,1782383675000,-758.32534976,0.00033658,2]
[426433368,1782383675000,-810.07486942,0.00033658,2]
[426433365,1782383675000,-445.79408902,0.00033658,2]
[426433369,1782383675000,-729.63483158,0.00033658,2]
[426433367,1782383675000,-1100.3162852,0.00033658,2]
[426433364,1782383675000,-605.40032553,0.00033658,2]
[426433366,1782383675000,-347.36102605,0.00033658,2]
[426433370,1782383675000,-404.33835035,0.00033658,2]
[426433393,1782383675000,-300.0,0.00033658,2]
[426433371,1782383675000,-301.95372069,0.00033658,2]
[426433373,1782383675000,-529.2919048,0.00033658,2]
[426433381,1782383675000,-529.2919048,0.00033658,2]
[426433375,1782383675000,-1806.07634004,0.00033658,2]
[426433382,1782383675000,-953.65268364,0.00033658,2]
[426433383,1782383675000,-602.56508292,0.00033658,2]
[426433372,1782383675000,-345.52149444,0.00033658,2]
[426433377,1782383675000,-594.51466153,0.00033658,2]
[426433389,1782383675000,-953.65268364,0.00033658,2]
[426433386,1782383675000,-705.85538303,0.00033658,2]
[426433388,1782383675000,-1100.3162852,0.00033658,2]
[426433390,1782383675000,-367.07455677,0.00033658,2]
[426433387,1782383675000,-953.65268364,0.00033658,2]
[426433395,1782383675000,-300.0,0.00033658,2]
[426433391,1782383675000,-953.65268364,0.00033658,2]
[426433379,1782383675000,-402.684355,0.00033658,2]
[426433374,1782383675000,-953.65268364,0.00033658,2]
[426433380,1782383675000,-460.78617551,0.00033658,2]
[426433385,1782383675000,-1100.3162852,0.00033658,2]
[426433384,1782383675000,-414.76127789,0.00033658,2]
[426433378,1782383675000,-1100.3162852,0.00033658,2]
[426433376,1782383675000,-311.01241424,0.00033658,2]
[426433468,1782383676000,-300.01792593,0.00033658,2]
[426433477,1782383676000,-300.0,0.00033658,2]
[426433476,1782383676000,-300.00000001,0.00033658,2]
[426433471,1782383676000,-303.17948037,0.00033658,2]
[426433467,1782383676000,-300.0,0.00033658,2]
[426433470,1782383676000,-973.05572894,0.00033658,2]
[426433463,1782383676000,-300.0,0.00033658,2]
[426433466,1782383676000,-300.01076096,0.00033658,2]
[426433462,1782383676000,-300.0,0.00033658,2]
[426433461,1782383676000,-300.0,0.00033658,2]
[426433460,1782383676000,-495.83731083,0.00033658,2]
[426433459,1782383676000,-494.94388681,0.00033658,2]
[426433469,1782383676000,-300.0,0.00033658,2]
[426433478,1782383676000,-1806.0547546,0.00033658,2]
[426433490,1782383676000,-513.60695689,0.00033658,2]
[426433473,1782383676000,-300.00000001,0.00033658,2]
[426433475,1782383676000,-300.0,0.00033658,2]
[426433472,1782383676000,-300.0,0.00033658,2]
[426433479,1782383676000,-300.0,0.00033658,2]
[426433481,1782383676000,-588.06698112,0.00033658,2]
[426433482,1782383676000,-300.0,0.00033658,2]
[426433486,1782383676000,-300.0,0.00033658,2]
[426433483,1782383676000,-311.00869715,0.00033658,2]
[426433484,1782383676000,-300.0,0.00033658,2]
[426433485,1782383676000,-568.61998563,0.00033658,2]
[426433480,1782383676000,-300.0,0.00033658,2]
[426433487,1782383676000,-300.0,0.00033658,2]
[426433465,1782383676000,-300.04092752,0.00033658,2]
[426433488,1782383676000,-596.88317933,0.00033658,2]
[426433474,1782383676000,-300.0,0.00033658,2]
[426433464,1782383676000,-607.42547748,0.00033658,2]
[426433449,1782383676000,-300.0,0.00033658,2]
[426433457,1782383676000,-300.00000001,0.00033658,2]
[426433489,1782383676000,-300.0,0.00033658,2]
[426433429,1782383676000,-324.79203108,0.00033658,2]
[426433427,1782383676000,-300.0,0.00033658,2]
[426433432,1782383676000,-1806.0547546,0.00033658,2]
[426433431,1782383676000,-300.05402839,0.00033658,2]
[426433430,1782383676000,-300.03685715,0.00033658,2]
[426433436,1782383676000,-568.61998563,0.00033658,2]
[426433433,1782383676000,-775.23877594,0.00033658,2]
[426433438,1782383676000,-300.03896028,0.00033658,2]
[426433434,1782383676000,-300.0,0.00033658,2]
[426433435,1782383676000,-300.0,0.00033658,2]
[426433437,1782383676000,-300.0,0.00033658,2]
[426433439,1782383676000,-596.88317933,0.00033658,2]
[426433446,1782383676000,-300.07820625,0.00033658,2]
[426433448,1782383676000,-300.0,0.00033658,2]
[426433447,1782383676000,-300.0,0.00033658,2]
[426433452,1782383676000,-300.0,0.00033658,2]
[426433445,1782383676000,-300.0,0.00033658,2]
[426433442,1782383676000,-300.0,0.00033658,2]
[426433440,1782383676000,-300.0,0.00033658,2]
[426433443,1782383676000,-300.0,0.00033658,2]
[426433450,1782383676000,-445.78876108,0.00033658,2]
[426433444,1782383676000,-453.95122882,0.00033658,2]
[426433441,1782383676000,-513.60695689,0.00033658,2]
[426433451,1782383676000,-300.0,0.00033658,2]
[426433454,1782383676000,-300.03671883,0.00033658,2]
[426433456,1782383676000,-300.0,0.00033658,2]
[426433455,1782383676000,-300.0,0.00033658,2]
[426433453,1782383676000,-300.0,0.00033658,2]
[426433458,1782383676000,-300.0,0.00033658,2]
[426433491,1782383676000,-300.0,0.00033658,2]
[426433428,1782383676000,-300.03860398,0.00033658,2]
[426433499,1782383676000,-445.78876108,0.00033658,2]
[426433522,1782383676000,-300.0399505,0.00033658,2]
[426433523,1782383676000,-300.2871185,0.00033658,2]
[426433524,1782383676000,-300.01076096,0.00033658,2]
[426433533,1782383676000,-300.0,0.00033658,2]
[426433537,1782383676000,-300.0,0.00033658,2]
[426433535,1782383676000,-300.03622856,0.00033658,2]
[426433536,1782383676000,-300.0,0.00033658,2]
[426433531,1782383676000,-301.95011187,0.00033658,2]
[426433534,1782383676000,-300.0,0.00033658,2]
[426433542,1782383676000,-300.0,0.00033658,2]
[426433539,1782383676000,-529.28557893,0.00033658,2]
[426433538,1782383676000,-345.52149444,0.00033658,2]
[426433532,1782383676000,-300.0,0.00033658,2]
[426433541,1782383676000,-300.0,0.00033658,2]
[426433540,1782383676000,-300.0,0.00033658,2]
[426433543,1782383676000,-1806.0547546,0.00033658,2]
[426433546,1782383676000,-588.06698112,0.00033658,2]
[426433544,1782383676000,-300.0,0.00033658,2]
[426433548,1782383676000,-311.00869715,0.00033658,2]
[426433549,1782383676000,-300.0,0.00033658,2]
[426433551,1782383676000,-300.0,0.00033658,2]
[426433545,1782383676000,-300.0,0.00033658,2]
[426433550,1782383676000,-568.61998563,0.00033658,2]
[426433552,1782383676000,-300.00000001,0.00033658,2]
[426433547,1782383676000,-300.0,0.00033658,2]
[426433556,1782383676000,-300.0,0.00033658,2]
[426433554,1782383676000,-300.0,0.00033658,2]